[Event "Titled Tuesday Blitz August 08 Late 2023"]
[White "MKlose11"]
[Black "Necromon"]
[WhiteElo "2661"]
[BlackElo "2374"]
[Result "1-0"]
[Round "1"]
[TimeControl "180+1"]
[Date "2023.08.08"]
[WhiteClock "0:00:50"]
[BlackClock "0:00:54"]
[Board "98"]

1. e4 {[%clk 0:02:59]}  c5 {[%clk 0:02:29]} 2. Nc3 {[%clk 0:02:58]}  Nc6 {[%clk 0:02:29]} 3. d3 {[%clk 0:02:58]}  g6 {[%clk 0:02:29]} 4. g3 {[%clk 0:02:50]}  Bg7 {[%clk 0:02:29]} 5. Bg2 {[%clk 0:02:50]}  e6 {[%clk 0:02:29]} 6. Be3 {[%clk 0:02:43]}  d6 {[%clk 0:02:28]} 7. Qd2 {[%clk 0:02:41]}  Nge7 {[%clk 0:02:28]} 8. Bh6 {[%clk 0:02:35]}  O-O {[%clk 0:02:28]} 9. h4 {[%clk 0:02:33]}  f6 {[%clk 0:02:28]} 10. Bxg7 {[%clk 0:02:32]}  Kxg7 {[%clk 0:02:28]} 11. f4 {[%clk 0:02:33]}  h6 {[%clk 0:02:25]} 12. Nf3 {[%clk 0:02:31]}  Nd4 {[%clk 0:02:24]} 13. O-O {[%clk 0:02:31]}  Nec6 {[%clk 0:02:22]} 14. Nd1 {[%clk 0:02:29]}  b5 {[%clk 0:02:20]} 15. Ne3 {[%clk 0:02:27]}  Nxf3+ {[%clk 0:02:20]} 16. Bxf3 {[%clk 0:02:27]}  Nd4 {[%clk 0:02:17]} 17. Bg2 {[%clk 0:02:24]}  Rb8 {[%clk 0:02:16]} 18. c3 {[%clk 0:02:23]}  Nc6 {[%clk 0:02:15]} 19. e5 {[%clk 0:02:09]}  Bb7 {[%clk 0:02:12]} 20. exf6+ {[%clk 0:02:06]}  Qxf6 {[%clk 0:02:09]} 21. Ng4 {[%clk 0:02:01]}  Qf5 {[%clk 0:02:05]} 22. Bh3 {[%clk 0:01:47]}  Ne7 {[%clk 0:02:00]} 23. Kh2 {[%clk 0:01:42]}  h5 {[%clk 0:01:53]} 24. Ne5 {[%clk 0:01:32]}  dxe5 {[%clk 0:01:37]} 25. Bxf5 {[%clk 0:01:32]}  Rxf5 {[%clk 0:01:38]} 26. fxe5 {[%clk 0:01:31]}  Rbf8 {[%clk 0:01:38]} 27. Rxf5 {[%clk 0:01:30]}  Rxf5 {[%clk 0:01:38]} 28. Qe2 {[%clk 0:01:26]}  Nc6 {[%clk 0:01:34]} 29. Rf1 {[%clk 0:01:04]}  Rxe5 {[%clk 0:01:19]} 30. Qd2 {[%clk 0:01:02]}  b4 {[%clk 0:01:07]} 31. Rf2 {[%clk 0:01:01]}  bxc3 {[%clk 0:01:04]} 32. bxc3 {[%clk 0:01:02]}  Ba6 {[%clk 0:00:54]} 33. Qf4 {[%clk 0:00:50]} 1-0


[Site "https://www.chess.com"]

[Event "Titled Tuesday Blitz August 08 Late 2023"]
[White "Sari, Yasin"]
[Black "Weetik, Vjacheslav"]
[WhiteFideId "6320902"]
[BlackFideId "4153472"]
[WhiteElo "2374"]
[BlackElo "2661"]
[Result "0-1"]
[Round "1"]
[TimeControl "180+1"]
[Date "2023.08.08"]
[WhiteClock "0:00:04"]
[BlackClock "0:00:14"]
[Board "99"]

1. Nf3 {[%clk 0:03:00]}  Nf6 {[%clk 0:02:59]} 2. c4 {[%clk 0:03:00]}  g6 {[%clk 0:02:57]} 3. g3 {[%clk 0:02:58]}  c6 {[%clk 0:02:57]} 4. d4 {[%clk 0:02:55]}  d5 {[%clk 0:02:58]} 5. Nbd2 {[%clk 0:02:54]}  Bg7 {[%clk 0:02:58]} 6. Bg2 {[%clk 0:02:54]}  O-O {[%clk 0:02:58]} 7. O-O {[%clk 0:02:54]}  b6 {[%clk 0:02:55]} 8. b3 {[%clk 0:02:50]}  a5 {[%clk 0:02:52]} 9. a4 {[%clk 0:02:46]}  Na6 {[%clk 0:02:49]} 10. cxd5 {[%clk 0:02:39]}  cxd5 {[%clk 0:02:38]} 11. Ne5 {[%clk 0:02:34]}  Nb4 {[%clk 0:02:34]} 12. Ba3 {[%clk 0:02:28]}  Ba6 {[%clk 0:02:26]} 13. Rc1 {[%clk 0:02:22]}  e6 {[%clk 0:02:22]} 14. Re1 {[%clk 0:02:11]}  Rc8 {[%clk 0:02:03]} 15. Bf1 {[%clk 0:01:53]}  Qd6 {[%clk 0:01:50]} 16. e3 {[%clk 0:01:24]}  Rxc1 {[%clk 0:01:47]} 17. Qxc1 {[%clk 0:01:20]}  Rc8 {[%clk 0:01:40]} 18. Qb1 {[%clk 0:01:06]}  Bxf1 {[%clk 0:01:37]} 19. Rxf1 {[%clk 0:01:05]}  Nd7 {[%clk 0:01:26]} 20. Nxd7 {[%clk 0:01:01]}  Qxd7 {[%clk 0:01:27]} 21. Rc1 {[%clk 0:01:01]}  Bf8 {[%clk 0:01:24]} 22. Nf3 {[%clk 0:00:51]}  f6 {[%clk 0:01:20]} 23. Rxc8 {[%clk 0:00:40]}  Qxc8 {[%clk 0:01:20]} 24. Qc1 {[%clk 0:00:40]}  Qxc1+ {[%clk 0:01:08]} 25. Bxc1 {[%clk 0:00:41]}  Kf7 {[%clk 0:00:57]} 26. Kf1 {[%clk 0:00:39]}  Nc6 {[%clk 0:00:47]} 27. Ke2 {[%clk 0:00:36]}  Be7 {[%clk 0:00:47]} 28. Ne1 {[%clk 0:00:28]}  e5 {[%clk 0:00:47]} 29. Nc2 {[%clk 0:00:25]}  e4 {[%clk 0:00:47]} 30. Ba3 {[%clk 0:00:21]}  Bxa3 {[%clk 0:00:43]} 31. Nxa3 {[%clk 0:00:22]}  f5 {[%clk 0:00:44]} 32. Nb5 {[%clk 0:00:20]}  Ke6 {[%clk 0:00:43]} 33. Nc7+ {[%clk 0:00:20]}  Kd6 {[%clk 0:00:43]} 34. Nb5+ {[%clk 0:00:21]}  Kd7 {[%clk 0:00:44]} 35. f3 {[%clk 0:00:10]}  Nb4 {[%clk 0:00:41]} 36. fxe4 {[%clk 0:00:10]}  dxe4 {[%clk 0:00:37]} 37. Na3 {[%clk 0:00:10]}  Kc6 {[%clk 0:00:36]} 38. Nc4 {[%clk 0:00:08]}  Nd3 {[%clk 0:00:35]} 39. Kd2 {[%clk 0:00:04]}  g5 {[%clk 0:00:23]} 40. Ke2 {[%clk 0:00:04]}  h6 {[%clk 0:00:13]} 41. Kd2 {[%clk 0:00:04]}  h5 {[%clk 0:00:13]} 42. Kc2 {[%clk 0:00:03]}  Ne1+ {[%clk 0:00:12]} 43. Kd1 {[%clk 0:00:03]}  Nf3 {[%clk 0:00:13]} 44. Ke2 {[%clk 0:00:02]}  Nxh2 {[%clk 0:00:13]} 45. Ne5+ {[%clk 0:00:02]}  Kd5 {[%clk 0:00:13]} 46. Nf7 {[%clk 0:00:01]}  Nf3 {[%clk 0:00:12]} 47. Nh6 {[%clk 0:00:01]}  Ke6 {[%clk 0:00:12]} 48. d5+ {[%clk 0:00:01]}  Kxd5 {[%clk 0:00:11]} 49. Nxf5 {[%clk 0:00:01]}  h4 {[%clk 0:00:12]} 50. gxh4 {[%clk 0:00:02]}  gxh4 {[%clk 0:00:12]} 51. Kf2 {[%clk 0:00:01]}  Kc5 {[%clk 0:00:13]} 52. Ne7 {[%clk 0:00:01]}  Nd2 {[%clk 0:00:12]} 53. Nc8 {[%clk 0:00:01]}  Nxb3 {[%clk 0:00:12]} 54. Kg2 {[%clk 0:00:02]}  b5 {[%clk 0:00:12]} 55. Kh3 {[%clk 0:00:02]}  bxa4 {[%clk 0:00:12]} 56. Kxh4 {[%clk 0:00:03]}  a3 {[%clk 0:00:13]} 57. Kg4 {[%clk 0:00:04]}  a2 {[%clk 0:00:13]} 58. Kf4 {[%clk 0:00:04]}  a1=Q {[%clk 0:00:14]} 0-1


[Site "https://www.chess.com"]

[Event "Titled Tuesday Blitz August 08 Late 2023"]
[White "Gatterer, Florian"]
[Black "Zeynalli, Rashad"]
[WhiteFideId "811688"]
[BlackFideId "13403320"]
[WhiteElo "2371"]
[BlackElo "2657"]
[Result "1/2-1/2"]
[Round "1"]
[TimeControl "180+1"]
[Date "2023.08.08"]
[WhiteClock "0:01:29"]
[BlackClock "0:01:52"]
[Board "101"]

1. e4 {[%clk 0:03:00]}  c6 {[%clk 0:02:50]} 2. d4 {[%clk 0:03:00]}  d5 {[%clk 0:02:50]} 3. e5 {[%clk 0:03:00]}  Bf5 {[%clk 0:02:50]} 4. Nf3 {[%clk 0:03:00]}  e6 {[%clk 0:02:50]} 5. Be2 {[%clk 0:03:00]}  c5 {[%clk 0:02:50]} 6. Be3 {[%clk 0:02:56]}  Qb6 {[%clk 0:02:50]} 7. Nc3 {[%clk 0:02:47]}  Nc6 {[%clk 0:02:50]} 8. O-O {[%clk 0:02:39]}  Qxb2 {[%clk 0:02:50]} 9. Nb5 {[%clk 0:02:32]}  c4 {[%clk 0:02:46]} 10. Nc7+ {[%clk 0:02:30]}  Kd7 {[%clk 0:02:34]} 11. Nxa8 {[%clk 0:02:29]}  Bxc2 {[%clk 0:02:33]} 12. Qc1 {[%clk 0:02:14]}  Ba3 {[%clk 0:02:32]} 13. Qe1 {[%clk 0:01:57]}  h6 {[%clk 0:02:17]} 14. Bc1 {[%clk 0:01:56]}  Qxa1 {[%clk 0:02:14]} 15. Bxa3 {[%clk 0:01:55]}  Qxe1 {[%clk 0:01:58]} 16. Nxe1 {[%clk 0:01:55]}  Nge7 {[%clk 0:01:57]} 17. Nxc2 {[%clk 0:01:29]}  Rxa8 {[%clk 0:01:52]} 1/2-1/2


[Site "https://www.chess.com"]

[Event "Titled Tuesday Blitz August 08 Late 2023"]
[White "Weishaeutel, Moritz"]
[Black "Ortmann, David"]
[WhiteFideId "12967300"]
[BlackFideId "4651588"]
[WhiteElo "2652"]
[BlackElo "2370"]
[Result "1-0"]
[Round "1"]
[TimeControl "180+1"]
[Date "2023.08.08"]
[WhiteClock "0:00:10"]
[BlackClock "0:00:11"]
[Board "102"]

1. e4 {[%clk 0:03:00]}  e6 {[%clk 0:02:56]} 2. d4 {[%clk 0:03:00]}  d5 {[%clk 0:02:56]} 3. exd5 {[%clk 0:03:01]}  exd5 {[%clk 0:02:56]} 4. Nf3 {[%clk 0:03:02]}  Nc6 {[%clk 0:02:55]} 5. Nc3 {[%clk 0:03:02]}  Bg4 {[%clk 0:02:55]} 6. Bb5 {[%clk 0:02:53]}  Bb4 {[%clk 0:02:54]} 7. O-O {[%clk 0:02:49]}  Ne7 {[%clk 0:02:52]} 8. h3 {[%clk 0:02:46]}  Bh5 {[%clk 0:02:52]} 9. a3 {[%clk 0:02:20]}  Bd6 {[%clk 0:02:44]} 10. Bg5 {[%clk 0:02:18]}  f6 {[%clk 0:02:35]} 11. Be3 {[%clk 0:02:17]}  Qd7 {[%clk 0:02:22]} 12. Be2 {[%clk 0:01:56]}  O-O-O {[%clk 0:02:18]} 13. Nb5 {[%clk 0:01:49]}  Rhe8 {[%clk 0:02:13]} 14. b4 {[%clk 0:01:45]}  Nf5 {[%clk 0:02:06]} 15. Nxd6+ {[%clk 0:01:43]}  Qxd6 {[%clk 0:02:00]} 16. Bc1 {[%clk 0:01:23]}  Rxe2 {[%clk 0:01:30]} 17. Qxe2 {[%clk 0:01:08]}  Ncxd4 {[%clk 0:01:14]} 18. Qd3 {[%clk 0:01:09]}  Nxf3+ {[%clk 0:00:44]} 19. gxf3 {[%clk 0:01:10]}  Nh4 {[%clk 0:00:44]} 20. f4 {[%clk 0:01:10]}  Nf3+ {[%clk 0:00:29]} 21. Kg2 {[%clk 0:01:05]}  Bg6 {[%clk 0:00:19]} 22. Qe3 {[%clk 0:00:30]}  Be4 {[%clk 0:00:19]} 23. Kg3 {[%clk 0:00:30]}  f5 {[%clk 0:00:16]} 24. Qxf3 {[%clk 0:00:21]}  Qg6+ {[%clk 0:00:12]} 25. Qg4 {[%clk 0:00:20]}  fxg4 {[%clk 0:00:13]} 26. hxg4 {[%clk 0:00:21]}  h5 {[%clk 0:00:13]} 27. f3 {[%clk 0:00:20]}  Bxc2 {[%clk 0:00:12]} 28. f5 {[%clk 0:00:19]}  Qd6+ {[%clk 0:00:12]} 29. Bf4 {[%clk 0:00:19]}  Qc6 {[%clk 0:00:12]} 30. Rac1 {[%clk 0:00:20]}  hxg4 {[%clk 0:00:12]} 31. fxg4 {[%clk 0:00:21]}  d4 {[%clk 0:00:12]} 32. Rxc2 {[%clk 0:00:16]}  Qxc2 {[%clk 0:00:11]} 33. Rc1 {[%clk 0:00:17]}  Qd3+ {[%clk 0:00:11]} 34. Kh4 {[%clk 0:00:17]}  c6 {[%clk 0:00:12]} 35. Kg5 {[%clk 0:00:16]}  Qf3 {[%clk 0:00:12]} 36. Re1 {[%clk 0:00:16]}  d3 {[%clk 0:00:12]} 37. Re7 {[%clk 0:00:16]}  Qd5 {[%clk 0:00:12]} 38. Rc7+ {[%clk 0:00:17]}  Kb8 {[%clk 0:00:12]} 39. Rd7+ {[%clk 0:00:16]}  Kc8 {[%clk 0:00:11]} 40. Rxd5 {[%clk 0:00:17]}  Rxd5 {[%clk 0:00:12]} 41. Bd2 {[%clk 0:00:18]}  Rd4 {[%clk 0:00:12]} 42. Kh5 {[%clk 0:00:15]}  Re4 {[%clk 0:00:12]} 43. g5 {[%clk 0:00:13]}  Kd7 {[%clk 0:00:13]} 44. Kg6 {[%clk 0:00:13]}  Re2 {[%clk 0:00:12]} 45. Bf4 {[%clk 0:00:13]}  Rf2 {[%clk 0:00:12]} 46. Be3 {[%clk 0:00:13]}  Ke8 {[%clk 0:00:12]} 47. f6 {[%clk 0:00:05]}  Rf3 {[%clk 0:00:13]} 48. Kxg7 {[%clk 0:00:04]}  Rxe3 {[%clk 0:00:13]} 49. f7+ {[%clk 0:00:05]}  Kd7 {[%clk 0:00:13]} 50. f8=Q {[%clk 0:00:05]}  Kc7 {[%clk 0:00:14]} 51. Qf4+ {[%clk 0:00:05]}  Kb6 {[%clk 0:00:14]} 52. Qxe3+ {[%clk 0:00:06]}  Kb5 {[%clk 0:00:14]} 53. Qxd3+ {[%clk 0:00:06]}  Ka4 {[%clk 0:00:15]} 54. Qc4 {[%clk 0:00:06]}  b5 {[%clk 0:00:16]} 55. Qxc6 {[%clk 0:00:07]}  Kxa3 {[%clk 0:00:16]} 56. Qxb5 {[%clk 0:00:07]}  Ka2 {[%clk 0:00:15]} 57. Qa5+ {[%clk 0:00:07]}  Kb2 {[%clk 0:00:14]} 58. Qxa7 {[%clk 0:00:07]}  Kb3 {[%clk 0:00:14]} 59. b5 {[%clk 0:00:08]}  Kc4 {[%clk 0:00:15]} 60. b6 {[%clk 0:00:09]}  Kd5 {[%clk 0:00:14]} 61. b7 {[%clk 0:00:10]}  Ke6 {[%clk 0:00:11]} 62. b8=Q {[%clk 0:00:10]} 1-0


[Site "https://www.chess.com"]

[Event "Titled Tuesday Blitz August 08 Late 2023"]
[White "Bernat, David"]
[Black "Hua, Lefong"]
[WhiteFideId "2099225"]
[BlackFideId "2602253"]
[WhiteElo "2370"]
[BlackElo "2651"]
[Result "1/2-1/2"]
[Round "1"]
[TimeControl "180+1"]
[Date "2023.08.08"]
[WhiteClock "0:00:19"]
[BlackClock "0:00:27"]
[Board "103"]

1. c4 {[%clk 0:03:00]}  Nf6 {[%clk 0:03:00]} 2. Nc3 {[%clk 0:03:01]}  g6 {[%clk 0:03:00]} 3. e4 {[%clk 0:03:00]}  d6 {[%clk 0:03:00]} 4. g3 {[%clk 0:03:01]}  Bg7 {[%clk 0:03:00]} 5. Nge2 {[%clk 0:03:01]}  c5 {[%clk 0:02:58]} 6. Bg2 {[%clk 0:03:01]}  Nc6 {[%clk 0:02:58]} 7. d3 {[%clk 0:03:02]}  O-O {[%clk 0:02:58]} 8. O-O {[%clk 0:03:02]}  Rb8 {[%clk 0:02:59]} 9. h3 {[%clk 0:03:01]}  a6 {[%clk 0:02:59]} 10. a4 {[%clk 0:03:02]}  Nd7 {[%clk 0:02:59]} 11. Be3 {[%clk 0:03:02]}  Nd4 {[%clk 0:02:59]} 12. Rb1 {[%clk 0:02:58]}  b6 {[%clk 0:02:54]} 13. b4 {[%clk 0:02:56]}  Bb7 {[%clk 0:02:52]} 14. b5 {[%clk 0:02:53]}  axb5 {[%clk 0:02:48]} 15. Nxb5 {[%clk 0:02:49]}  Nxb5 {[%clk 0:02:47]} 16. axb5 {[%clk 0:02:48]}  Ra8 {[%clk 0:02:44]} 17. Qb3 {[%clk 0:02:45]}  Ra7 {[%clk 0:02:41]} 18. Bc1 {[%clk 0:02:27]}  Qa8 {[%clk 0:02:37]} 19. Bb2 {[%clk 0:02:26]}  Bxb2 {[%clk 0:02:35]} 20. Rxb2 {[%clk 0:02:27]}  Ra3 {[%clk 0:02:34]} 21. Qc2 {[%clk 0:02:25]}  Qa5 {[%clk 0:02:28]} 22. Rfb1 {[%clk 0:02:14]}  Ra8 {[%clk 0:02:25]} 23. Kh2 {[%clk 0:02:02]}  Nf8 {[%clk 0:02:14]} 24. Rb3 {[%clk 0:01:52]}  Ra2 {[%clk 0:02:12]} 25. R3b2 {[%clk 0:01:44]}  Ra3 {[%clk 0:02:13]} 26. Rb3 {[%clk 0:01:45]}  Ne6 {[%clk 0:02:13]} 27. Rxa3 {[%clk 0:01:39]}  Qxa3 {[%clk 0:02:14]} 28. Rb3 {[%clk 0:01:40]}  Qa5 {[%clk 0:02:02]} 29. Qc3 {[%clk 0:01:24]}  Qa2 {[%clk 0:01:55]} 30. Rb2 {[%clk 0:01:24]}  Qa1 {[%clk 0:01:55]} 31. Qd2 {[%clk 0:01:14]}  Ra3 {[%clk 0:01:49]} 32. f4 {[%clk 0:01:08]}  Nd4 {[%clk 0:01:44]} 33. Nxd4 {[%clk 0:01:08]}  cxd4 {[%clk 0:01:44]} 34. Rc2 {[%clk 0:00:58]}  Qb1 {[%clk 0:01:33]} 35. f5 {[%clk 0:00:20]}  Ra1 {[%clk 0:01:25]} 36. Qf2 {[%clk 0:00:12]}  Qd1 {[%clk 0:01:19]} 37. Rd2 {[%clk 0:00:13]}  Qc1 {[%clk 0:01:11]} 38. Qxd4 {[%clk 0:00:13]}  Qxd2 {[%clk 0:01:08]} 39. Qxa1 {[%clk 0:00:13]}  Qxd3 {[%clk 0:01:08]} 40. f6 {[%clk 0:00:11]}  exf6 {[%clk 0:01:04]} 41. Qxf6 {[%clk 0:00:12]}  Bxe4 {[%clk 0:01:02]} 42. Bxe4 {[%clk 0:00:12]}  Qxe4 {[%clk 0:01:02]} 43. Qxd6 {[%clk 0:00:13]}  Qe3 {[%clk 0:00:52]} 44. Qd5 {[%clk 0:00:11]}  h5 {[%clk 0:00:50]} 45. g4 {[%clk 0:00:07]}  Qf2+ {[%clk 0:00:47]} 46. Qg2 {[%clk 0:00:08]}  Qf4+ {[%clk 0:00:46]} 47. Qg3 {[%clk 0:00:08]}  Qxc4 {[%clk 0:00:44]} 48. Qb8+ {[%clk 0:00:09]}  Kh7 {[%clk 0:00:42]} 49. Qxb6 {[%clk 0:00:10]}  hxg4 {[%clk 0:00:40]} 50. hxg4 {[%clk 0:00:11]}  Qxg4 {[%clk 0:00:40]} 51. Qc6 {[%clk 0:00:11]}  Qe2+ {[%clk 0:00:39]} 52. Kg3 {[%clk 0:00:12]}  Qe3+ {[%clk 0:00:39]} 53. Kg2 {[%clk 0:00:13]}  Qd2+ {[%clk 0:00:38]} 54. Kg3 {[%clk 0:00:13]}  g5 {[%clk 0:00:38]} 55. b6 {[%clk 0:00:14]}  Qf4+ {[%clk 0:00:38]} 56. Kg2 {[%clk 0:00:14]}  Qd2+ {[%clk 0:00:38]} 57. Kg3 {[%clk 0:00:15]}  Qe3+ {[%clk 0:00:37]} 58. Kg2 {[%clk 0:00:15]}  Qe2+ {[%clk 0:00:36]} 59. Kg3 {[%clk 0:00:16]}  Qe1+ {[%clk 0:00:36]} 60. Kg2 {[%clk 0:00:17]}  Qd2+ {[%clk 0:00:36]} 61. Kg1 {[%clk 0:00:16]}  Qd1+ {[%clk 0:00:35]} 62. Kf2 {[%clk 0:00:17]}  Qd2+ {[%clk 0:00:35]} 63. Kf3 {[%clk 0:00:17]}  Qd3+ {[%clk 0:00:32]} 64. Kg4 {[%clk 0:00:18]}  f6 {[%clk 0:00:29]} 65. Qc7+ {[%clk 0:00:16]}  Kg6 {[%clk 0:00:28]} 66. Qc6 {[%clk 0:00:13]}  Qd4+ {[%clk 0:00:25]} 67. Kg3 {[%clk 0:00:13]}  Qe3+ {[%clk 0:00:25]} 68. Kg2 {[%clk 0:00:14]}  Qe2+ {[%clk 0:00:26]} 69. Kg1 {[%clk 0:00:15]}  Qe1+ {[%clk 0:00:26]} 70. Kg2 {[%clk 0:00:16]}  Qd2+ {[%clk 0:00:26]} 71. Kf1 {[%clk 0:00:16]}  Qd1+ {[%clk 0:00:26]} 72. Kf2 {[%clk 0:00:17]}  Qd2+ {[%clk 0:00:26]} 73. Kf1 {[%clk 0:00:18]}  Qd1+ {[%clk 0:00:26]} 74. Kf2 {[%clk 0:00:19]}  Qd2+ {[%clk 0:00:27]} 75. Kf1 {[%clk 0:00:19]} 1/2-1/2


[Site "https://www.chess.com"]

[Event "Titled Tuesday Blitz August 08 Late 2023"]
[White "Domingo Nunez, Ruben"]
[Black "Polaczek, Richard"]
[WhiteFideId "22245570"]
[BlackFideId "200026"]
[WhiteElo "2639"]
[BlackElo "2368"]
[Result "1-0"]
[Round "1"]
[TimeControl "180+1"]
[Date "2023.08.08"]
[WhiteClock "0:00:41"]
[BlackClock "0:00:00"]
[Board "106"]

1. Nf3 {[%clk 0:03:00]}  d5 {[%clk 0:02:57]} 2. b3 {[%clk 0:03:01]}  c5 {[%clk 0:02:52]} 3. Bb2 {[%clk 0:03:01]}  Nc6 {[%clk 0:02:51]} 4. e3 {[%clk 0:03:01]}  a6 {[%clk 0:02:51]} 5. g3 {[%clk 0:02:51]}  f6 {[%clk 0:02:47]} 6. d3 {[%clk 0:02:50]}  e5 {[%clk 0:02:46]} 7. Bg2 {[%clk 0:02:51]}  Bg4 {[%clk 0:02:41]} 8. Nbd2 {[%clk 0:02:51]}  Qd7 {[%clk 0:02:39]} 9. h3 {[%clk 0:02:52]}  Be6 {[%clk 0:02:38]} 10. a3 {[%clk 0:02:41]}  Nh6 {[%clk 0:02:36]} 11. c4 {[%clk 0:02:41]}  d4 {[%clk 0:02:21]} 12. exd4 {[%clk 0:02:38]}  cxd4 {[%clk 0:02:18]} 13. b4 {[%clk 0:02:37]}  Nf7 {[%clk 0:02:17]} 14. Ne4 {[%clk 0:02:32]}  Be7 {[%clk 0:02:14]} 15. g4 {[%clk 0:02:22]}  O-O {[%clk 0:02:04]} 16. Qe2 {[%clk 0:02:20]}  b6 {[%clk 0:01:40]} 17. O-O {[%clk 0:02:18]}  h5 {[%clk 0:01:38]} 18. gxh5 {[%clk 0:02:02]}  Bxh3 {[%clk 0:01:36]} 19. Nh4 {[%clk 0:02:02]}  Bxg2 {[%clk 0:01:34]} 20. Kxg2 {[%clk 0:02:03]}  f5 {[%clk 0:01:22]} 21. Ng6 {[%clk 0:02:03]}  fxe4 {[%clk 0:01:20]} 22. Nxf8 {[%clk 0:02:03]}  Rxf8 {[%clk 0:01:18]} 23. Qxe4 {[%clk 0:02:04]}  Kh8 {[%clk 0:00:58]} 24. Bc1 {[%clk 0:01:58]}  Bg5 {[%clk 0:00:55]} 25. f3 {[%clk 0:01:35]}  Bf4 {[%clk 0:00:44]} 26. Bxf4 {[%clk 0:01:33]}  exf4 {[%clk 0:00:43]} 27. Qxf4 {[%clk 0:01:33]}  Nce5 {[%clk 0:00:33]} 28. Rad1 {[%clk 0:01:33]}  Qd6 {[%clk 0:00:29]} 29. Rfe1 {[%clk 0:01:30]}  Nxd3 {[%clk 0:00:23]} 30. Qf5 {[%clk 0:00:53]}  Nxe1+ {[%clk 0:00:22]} 31. Rxe1 {[%clk 0:00:54]}  Nh6 {[%clk 0:00:19]} 32. Qe6 {[%clk 0:00:54]}  Qf4 {[%clk 0:00:18]} 33. Qe4 {[%clk 0:00:53]}  Qg5+ {[%clk 0:00:16]} 34. Kf2 {[%clk 0:00:54]}  Qxh5 {[%clk 0:00:13]} 35. Rg1 {[%clk 0:00:51]}  Nf5 {[%clk 0:00:09]} 36. f4 {[%clk 0:00:47]}  Qh4+ {[%clk 0:00:05]} 37. Kf3 {[%clk 0:00:43]}  Qh3+ {[%clk 0:00:05]} 38. Kf2 {[%clk 0:00:42]}  Qh4+ {[%clk 0:00:03]} 39. Kf3 {[%clk 0:00:42]}  Qh3+ {[%clk 0:00:03]} 40. Kf2 {[%clk 0:00:42]}  Ne3 {[%clk 0:00:02]} 41. Rh1 {[%clk 0:00:41]}  Ng4+ {[%clk 0:00:00]} 42. Ke1 {[%clk 0:00:41]} 1-0


[Site "https://www.chess.com"]

[Event "Titled Tuesday Blitz August 08 Late 2023"]
[White "Hoffmann, Asa"]
[Black "Ismayil, Malak"]
[WhiteFideId "2001470"]
[BlackFideId "13412604"]
[WhiteElo "2340"]
[BlackElo "2625"]
[Result "1-0"]
[Round "1"]
[TimeControl "180+1"]
[Date "2023.08.08"]
[WhiteClock "0:01:17"]
[BlackClock "0:00:21"]
[Board "115"]

1. d4 {[%clk 0:02:54]}  Nf6 {[%clk 0:02:58]} 2. Bg5 {[%clk 0:02:51]}  e6 {[%clk 0:02:52]} 3. Nd2 {[%clk 0:02:51]}  d5 {[%clk 0:02:52]} 4. e3 {[%clk 0:02:50]}  Be7 {[%clk 0:02:52]} 5. Bd3 {[%clk 0:02:50]}  O-O {[%clk 0:02:52]} 6. f4 {[%clk 0:02:50]}  c5 {[%clk 0:02:52]} 7. c3 {[%clk 0:02:50]}  c4 {[%clk 0:02:49]} 8. Bc2 {[%clk 0:02:50]}  b5 {[%clk 0:02:50]} 9. Ngf3 {[%clk 0:02:49]}  b4 {[%clk 0:02:50]} 10. Ne5 {[%clk 0:02:49]}  bxc3 {[%clk 0:02:36]} 11. bxc3 {[%clk 0:02:48]}  Qa5 {[%clk 0:02:37]} 12. Rc1 {[%clk 0:02:44]}  Kh8 {[%clk 0:02:29]} 13. Bxf6 {[%clk 0:02:25]}  Bxf6 {[%clk 0:02:18]} 14. Qh5 {[%clk 0:02:23]}  g6 {[%clk 0:01:59]} 15. Bxg6 {[%clk 0:02:22]}  fxg6 {[%clk 0:01:54]} 16. Nxg6+ {[%clk 0:02:21]}  Kg7 {[%clk 0:01:55]} 17. Nxf8 {[%clk 0:02:21]}  Kxf8 {[%clk 0:01:55]} 18. Qxh7 {[%clk 0:02:17]}  Nc6 {[%clk 0:01:46]} 19. O-O {[%clk 0:02:16]}  Rb8 {[%clk 0:01:38]} 20. Rf3 {[%clk 0:02:12]}  Rb7 {[%clk 0:01:37]} 21. Qh5 {[%clk 0:02:02]}  Ke7 {[%clk 0:01:25]} 22. Rg3 {[%clk 0:01:56]}  Kd6 {[%clk 0:01:24]} 23. e4 {[%clk 0:01:54]}  Bxd4+ {[%clk 0:01:15]} 24. Kh1 {[%clk 0:01:50]}  Qa3 {[%clk 0:01:01]} 25. Re1 {[%clk 0:01:34]}  Bf2 {[%clk 0:00:49]} 26. exd5 {[%clk 0:01:27]}  Bxe1 {[%clk 0:00:44]} 27. Nxc4+ {[%clk 0:01:26]}  Kc7 {[%clk 0:00:34]} 28. Nxa3 {[%clk 0:01:24]}  Bxg3 {[%clk 0:00:32]} 29. dxc6 {[%clk 0:01:21]}  Kxc6 {[%clk 0:00:29]} 30. hxg3 {[%clk 0:01:21]}  Rb2 {[%clk 0:00:21]} 31. Nc4 {[%clk 0:01:17]} 1-0


[Site "https://www.chess.com"]